fUSD/lending_fUSD_20250206
["ID","MTS","AMOUNT","RATE_DAILY","PERIOD"]
[351968562,1738864243562,-1437.52,0.00016709,2]
[351968564,1738864243571,-1020.82,0.00016709,2]
[351968566,1738864243581,-500.0,0.00016709,2]
[351968568,1738864243591,-500.0,0.00016709,2]
[351968570,1738864243600,-1573.34,0.00016709,2]
[351968572,1738864243610,-500.0,0.00016709,2]
[351968574,1738864243620,-1402.7,0.00016709,2]
[351968576,1738864243630,-500.0,0.00016709,2]
[351968578,1738864243639,-631.90445912,0.00016709,2]
[351968579,1738864243650,-500.0,0.00016709,2]
[351968581,1738864243659,-1095.18,0.00016709,2]
[351968583,1738864243669,-500.0,0.00016709,2]
[351968585,1738864243678,-500.0,0.00016709,2]
[351968587,1738864243688,-500.0,0.00016709,2]
[351968589,1738864243697,-500.0,0.00016709,2]
[351968591,1738864243707,-581.4,0.00016709,2]
[351968593,1738864243716,-792.17,0.00016709,2]
[351968595,1738864243725,-500.0,0.00016709,2]
[351968597,1738864243735,-500.0,0.00016709,2]
[351968599,1738864243745,-947.46,0.00016709,2]
[351968601,1738864243756,-500.0,0.00016709,2]
[351968603,1738864243766,-1290.55,0.00016709,2]
[351968605,1738864243775,-500.0,0.00016709,2]
[351968607,1738864243785,-500.0,0.00016709,2]
[351968609,1738864243795,-1428.07,0.00016709,2]
[351968610,1738864243804,-500.0,0.00016709,2]
[351968612,1738864243815,-500.0,0.00016709,2]
[351968614,1738864243828,-586.10374856,0.00016709,2]
[351968617,1738864243841,-918.93,0.00016709,2]
[351968619,1738864243852,-500.0,0.00016709,2]
[351968620,1738864243863,-500.0,0.00016709,2]
[351968623,1738864243873,-905.54,0.00016709,2]
[351968624,1738864243883,-505.32430455,0.00016709,2]
[351968626,1738864243892,-531.31,0.00016709,2]
[351968628,1738864243903,-500.0,0.00016709,2]
[351968630,1738864243912,-500.0,0.00016709,2]
[351968633,1738864243922,-500.0,0.00016709,2]
[351968634,1738864243932,-1747.03,0.00016709,2]
[351968637,1738864243942,-500.0,0.00016709,2]
[351968638,1738864243952,-817.52,0.00016709,2]
[351968640,1738864243962,-500.0,0.00016709,2]
[351968642,1738864243972,-500.0,0.00016709,2]
[351968644,1738864243982,-500.0,0.00016709,2]
[351968646,1738864243992,-693.02,0.00016709,2]
[351968648,1738864244003,-500.0,0.00016709,2]
[351968650,1738864244015,-500.0,0.00016709,2]
[351968652,1738864244025,-500.0,0.00016709,2]
[351968654,1738864244034,-500.0,0.00016709,2]
[351968657,1738864244045,-500.0,0.00016709,2]
[351968658,1738864244055,-500.0,0.00016709,2]
[351968661,1738864244065,-502.24,0.00016709,2]
[351968662,1738864244074,-500.0,0.00016709,2]
[351968665,1738864244085,-1019.99,0.00016709,2]
[351968667,1738864244094,-500.0,0.00016709,2]
[351968669,1738864244104,-500.0,0.00016709,2]
[351968670,1738864244114,-500.0,0.00016709,2]
[351968673,1738864244124,-185.80496921,0.00016709,2]
[351968675,1738864244134,-181.85356639,0.00016709,2]
[351968677,1738864244144,-500.0,0.00016709,2]
[351968679,1738864244154,-500.0,0.0001671,2]
[351968681,1738864244165,-563.8,0.0001671,2]
[351968683,1738864244176,-500.0,0.0001671,2]
[351968685,1738864244186,-500.0,0.0001671,2]
[351968687,1738864244196,-500.0,0.0001671,2]
[351968689,1738864244206,-500.0,0.0001671,2]
[351968691,1738864244216,-500.0,0.0001671,2]
[351968693,1738864244226,-500.0,0.0001671,2]
[351968695,1738864244236,-888.19,0.0001671,2]
[351968697,1738864244246,-380.16480509,0.0001671,2]
[351968699,1738864244256,-514.28,0.0001671,2]
[351968701,1738864244266,-500.0,0.0001671,2]
[351968703,1738864244276,-555.83,0.0001671,2]
[351968705,1738864244286,-500.0,0.0001671,2]
[351968707,1738864244297,-500.0,0.0001671,2]
[351968709,1738864244307,-500.0,0.0001671,2]
[351968712,1738864244317,-500.0,0.0001671,2]
[351968714,1738864244329,-500.0,0.0001671,2]
[351968716,1738864244340,-500.0,0.0001671,2]
[351968718,1738864244350,-500.0,0.0001671,2]
[351968720,1738864244360,-500.0,0.0001671,2]
[351968722,1738864244371,-500.0,0.0001671,2]
[351968724,1738864244382,-500.0,0.0001671,2]
[351968726,1738864244393,-500.0,0.0001671,2]
[351968728,1738864244405,-500.0,0.0001671,2]
[351968730,1738864244416,-500.0,0.0001671,2]
[351968732,1738864244427,-500.0,0.0001671,2]
[351968734,1738864244439,-500.0,0.0001671,2]
[351968736,1738864244451,-1531.6,0.0001671,2]
[351968738,1738864244468,-500.0,0.0001671,2]
[351968740,1738864244481,-500.0,0.0001671,2]
[351968742,1738864244492,-500.0,0.0001671,2]
[351968744,1738864244502,-500.0,0.0001671,2]
[351968746,1738864244512,-500.0,0.0001671,2]
[351968748,1738864244522,-500.0,0.0001671,2]
[351968750,1738864244532,-500.0,0.0001671,2]
[351968751,1738864244542,-542.61422892,0.0001671,2]
[351968754,1738864244552,-500.0,0.0001671,2]
[351968755,1738864244562,-500.0,0.0001671,2]
[351968758,1738864244572,-500.0,0.0001671,2]
[351968760,1738864244583,-500.0,0.0001671,2]
[351968761,1738864244594,-500.0,0.0001671,2]
[351968763,1738864244604,-500.0,0.0001671,2]
[351968766,1738864244615,-524.03,0.0001671,2]
[351968767,1738864244626,-500.0,0.0001671,2]
[351968770,1738864244635,-500.0,0.0001671,2]
[351968771,1738864244648,-609.81,0.0001671,2]
[351968774,1738864244658,-500.0,0.0001671,2]
[351968776,1738864244668,-500.0,0.0001671,2]
[351968777,1738864244678,-626.62,0.0001671,2]
[351968779,1738864244688,-500.0,0.0001671,2]
[351968805,1738864244924,-589.33,0.0001671,2]
[351968807,1738864244935,-316.73474924,0.0001671,2]
[351968809,1738864244952,-433.60525076,0.0001671,2]
[351968811,1738864244963,-500.0,0.0001671,2]
[351968813,1738864244974,-500.0,0.0001671,2]
[351968815,1738864244985,-569.06,0.0001671,2]
[351968817,1738864244996,-500.0,0.0001671,2]
[351968820,1738864245012,-792.16,0.0001671,2]
[351968822,1738864245023,-724.89,0.0001671,2]
[351968823,1738864245033,-500.0,0.0001671,2]
[351968825,1738864245044,-500.0,0.0001671,2]
[351968827,1738864245054,-135.7083011,0.0001671,2]
[351968830,1738864245067,-364.2916989,0.0001671,2]
[351968832,1738864245079,-500.0,0.0001671,2]
[351968833,1738864245095,-500.0,0.0001671,2]
[351968835,1738864245105,-659.56,0.0001671,2]
[351968837,1738864245115,-500.0,0.0001671,2]
[351968839,1738864245128,-500.0,0.0001671,2]
[351968841,1738864245138,-500.0,0.0001671,2]
[351968843,1738864245148,-500.0,0.0001671,2]
[351968845,1738864245158,-500.0,0.0001671,2]
[351968847,1738864245167,-1121.13,0.0001671,2]
[351968849,1738864245177,-545.72,0.0001671,2]
[351968851,1738864245186,-638.87,0.0001671,2]
[351968853,1738864245196,-963.84,0.0001671,2]
[351968855,1738864245206,-500.0,0.0001671,2]
[351968857,1738864245217,-1122.78,0.0001671,2]
[351968859,1738864245227,-923.72,0.0001671,2]
[351968861,1738864245236,-2198.95,0.0001671,2]
[351968863,1738864245246,-500.0,0.0001671,2]
[351968865,1738864245256,-500.0,0.0001671,2]
[351968867,1738864245266,-500.0,0.0001671,2]
[351968869,1738864245275,-729.99,0.0001671,2]
[351968871,1738864245285,-2168.83,0.0001671,2]
[351968873,1738864245295,-589.68,0.0001671,2]
[351968875,1738864245304,-1020.6,0.0001671,2]
[351968877,1738864245315,-500.0,0.0001671,2]
[351968879,1738864245324,-526.82,0.0001671,2]
[351968881,1738864245337,-500.0,0.0001671,2]
[351968883,1738864245347,-1189.21,0.0001671,2]
[351968885,1738864245357,-500.0,0.0001671,2]
[351968887,1738864245367,-500.65516432,0.0001671,2]
[351968889,1738864245377,-1605.2,0.0001671,2]
[351968891,1738864245387,-798.29,0.0001671,2]
[351968893,1738864245396,-616.52,0.0001671,2]
[351968895,1738864245406,-202.59313678,0.0001671,2]
[351968900,1738864245442,-939.84,0.0001671,2]
[351968909,1738864245519,-670.00686322,0.0001671,2]
[351968911,1738864245529,-500.0,0.0001671,2]
[351968913,1738864245538,-538.22,0.0001671,2]
[351968915,1738864245547,-500.0,0.0001671,2]
[351968917,1738864245557,-500.0,0.0001671,2]
[351968919,1738864245566,-500.0,0.0001671,2]
[351968921,1738864245576,-500.0,0.0001671,2]
[351968923,1738864245588,-1185.13,0.0001671,2]
[351968925,1738864245597,-500.0,0.0001671,2]
[351968927,1738864245607,-793.24313678,0.0001671,2]
[351968929,1738864245619,-915.19686322,0.0001671,2]
[351968931,1738864245628,-500.0,0.0001671,2]
[351968933,1738864245637,-872.2,0.0001671,2]
[351968935,1738864245647,-927.48,0.00016711,2]
[351968937,1738864245657,-500.0,0.00016711,2]
[351968939,1738864245667,-603.07,0.00016711,2]
[351968942,1738864245676,-1215.04,0.00016711,2]
[351968944,1738864245686,-500.0,0.00016711,2]
[351968946,1738864245695,-500.0,0.00016711,2]
[351968948,1738864245705,-1197.26,0.00016711,2]
[351968950,1738864245715,-500.0,0.00016711,2]
[351968952,1738864245724,-755.27,0.00016711,2]
[351968954,1738864245733,-1007.78,0.00016711,2]
[351968956,1738864245743,-1068.68,0.00016711,2]
[351968958,1738864245752,-2250.94,0.00016711,2]
[351968960,1738864245763,-2400.53,0.00016711,2]
[351968962,1738864245773,-1203.93,0.00016711,2]
[351968965,1738864245783,-500.0,0.00016711,2]
[351968967,1738864245793,-829.77,0.00016711,2]
[351968969,1738864245802,-1014.73,0.00016711,2]
[351968971,1738864245812,-500.0,0.00016711,2]
[351968973,1738864245821,-894.61,0.00016711,2]
[351968975,1738864245830,-500.0,0.00016711,2]
[351968977,1738864245845,-714.89,0.00016711,2]
[351968979,1738864245854,-1000.0,0.00016711,2]
[351968981,1738864245864,-500.0,0.00016712,2]
[351968983,1738864245873,-500.0,0.00016712,2]
[351968985,1738864245883,-500.0,0.00016712,2]
[351968987,1738864245892,-500.0,0.00016712,2]
[351968989,1738864245902,-500.0,0.00016712,2]
[351968991,1738864245912,-500.0,0.00016712,2]
[351968993,1738864245922,-500.0,0.00016712,2]
[351968995,1738864245931,-121.3971898,0.00016712,2]
[351969009,1738864246060,-378.6028102,0.00016712,2]
[351969011,1738864246070,-500.0,0.00016712,2]
[351969013,1738864246080,-500.0,0.00016712,2]
[351969015,1738864246096,-500.0,0.00016712,2]
[351969017,1738864246106,-500.0,0.00016712,2]
[351969018,1738864246117,-500.0,0.00016712,2]
[351969020,1738864246127,-545.50166104,0.00016712,2]
[351969021,1738864246137,-551.14487755,0.00016712,2]
[351969022,1738864246147,-500.0,0.00016712,2]
[351969023,1738864246157,-500.0,0.00016712,2]
[351969024,1738864246166,-500.0,0.00016712,2]
[351969025,1738864246176,-670.16,0.00016712,2]
[351969026,1738864246186,-500.0,0.00016712,2]
[351969027,1738864246196,-500.0,0.00016712,2]
[351969028,1738864246206,-500.0,0.00016712,2]
[351969029,1738864246215,-500.0,0.00016712,2]
[351969030,1738864246225,-500.0,0.00016712,2]
[351969031,1738864246235,-500.0,0.00016712,2]
[351969032,1738864246244,-500.0,0.00016712,2]
[351969033,1738864246254,-500.0,0.00016712,2]
[351969034,1738864246263,-500.0,0.00016712,2]
[351969035,1738864246273,-500.0,0.00016712,2]
[351969036,1738864246282,-500.0,0.00016712,2]
[351969037,1738864246292,-500.0,0.00016712,2]
[351969038,1738864246302,-500.0,0.00016712,2]
[351969039,1738864246312,-779.06,0.00016712,2]
[351969040,1738864246321,-517.53,0.00016712,2]
[351969041,1738864246330,-500.0,0.00016712,2]
[351969042,1738864246343,-500.0,0.00016712,2]
[351969043,1738864246353,-500.0,0.00016712,2]
[351969044,1738864246363,-500.0,0.00016712,2]
[351969045,1738864246373,-500.0,0.00016712,2]
[351969046,1738864246381,-500.0,0.00016712,2]
[351969047,1738864246390,-500.0,0.00016712,2]
[351969048,1738864246400,-500.0,0.00016712,2]
[351969049,1738864246409,-500.0,0.00016712,2]
[351969050,1738864246419,-500.0,0.00016712,2]
[351969051,1738864246427,-421.3299822,0.00016712,2]
[351969052,1738864246439,-78.6700178,0.00016712,2]
[351969053,1738864246448,-500.0,0.00016712,2]
[351969054,1738864246457,-13.64101632,0.00016712,2]
[351969055,1738864246469,-486.35898368,0.00016712,2]
[351969056,1738864246478,-189.31601635,0.00016712,2]
[351969057,1738864246489,-310.68398365,0.00016712,2]
[351969058,1738864246498,-500.0,0.00016712,2]
[351969059,1738864246506,-500.0,0.00016712,2]
[351969060,1738864246514,-500.0,0.00016712,2]
[351969061,1738864246523,-500.0,0.00016712,2]
[351969062,1738864246533,-647.99,0.00016712,2]
[351969063,1738864246542,-84.98754099,0.00016712,2]
[351969064,1738864246553,-389.900012,0.00016712,2]
[351969065,1738864246565,-25.11244701,0.00016712,2]
[351969066,1738864246574,-500.0,0.00016712,2]
[351969067,1738864246583,-500.0,0.00016712,2]
[351969068,1738864246595,-500.0,0.00016712,2]
[351969069,1738864246604,-500.0,0.00016712,2]
[351969070,1738864246615,-538.22,0.00016712,2]
[351969072,1738864246625,-500.0,0.00016712,2]
[351969074,1738864246635,-500.0,0.00016712,2]
[351969076,1738864246645,-500.0,0.00016712,2]
[351969078,1738864246654,-500.0,0.00016712,2]
[351969080,1738864246663,-500.0,0.00016712,2]
[351969082,1738864246673,-500.0,0.00016712,2]
[351969084,1738864246683,-659.29,0.00016712,2]
[351969086,1738864246692,-500.0,0.00016712,2]
[351969088,1738864246701,-500.0,0.00016712,2]
[351969090,1738864246711,-625.14,0.00016712,2]
[351969092,1738864246720,-500.0,0.00016712,2]
[351969094,1738864246729,-588.95,0.00016712,2]
[351969096,1738864246739,-563.76,0.00016712,2]
[351969098,1738864246749,-327.16564476,0.00016712,2]
[351969100,1738864246759,-500.0,0.00016712,2]
[351969102,1738864246769,-500.0,0.00016712,2]
[351969104,1738864246778,-854.85,0.00016712,2]
[351969106,1738864246788,-500.0,0.00016712,2]
[351969108,1738864246798,-905.17,0.00016712,2]
[351969110,1738864246809,-500.0,0.00016712,2]
[351969112,1738864246819,-500.0,0.00016712,2]
[351969114,1738864246829,-612.23,0.00016712,2]
[351969116,1738864246840,-500.0,0.00016712,2]
[351969118,1738864246850,-500.0,0.00016712,2]
[351969120,1738864246859,-500.0,0.00016712,2]
[351969122,1738864246869,-500.0,0.00016712,2]
[351969124,1738864246879,-500.0,0.00016712,2]
[351969126,1738864246889,-500.0,0.00016712,2]
[351969128,1738864246900,-500.0,0.00016712,2]
[351969130,1738864246910,-500.0,0.00016712,2]
[351969132,1738864246920,-500.0,0.00016712,2]
[351969134,1738864246930,-500.0,0.00016712,2]
[351969136,1738864246940,-441.11356472,0.00016712,2]
[351969138,1738864246949,-500.0,0.00016712,2]
[351969140,1738864246959,-500.0,0.00016712,2]
[351969141,1738864246968,-667.48,0.00016712,2]
[351969143,1738864246977,-500.0,0.00016712,2]
[351969145,1738864246987,-500.0,0.00016712,2]
[351969147,1738864246997,-500.0,0.00016712,2]
[351969149,1738864247010,-897.91,0.00016712,2]
[351969151,1738864247020,-500.0,0.00016712,2]
[351969153,1738864247031,-500.0,0.00016712,2]
[351969155,1738864247040,-735.37,0.00016712,2]
[351969157,1738864247050,-500.0,0.00016712,2]
[351969159,1738864247060,-716.32,0.00016712,2]
[351969162,1738864247072,-500.0,0.00016712,2]
[351969164,1738864247083,-500.0,0.00016712,2]
[351969166,1738864247095,-500.0,0.00016712,2]
[351969168,1738864247105,-645.74,0.00016712,2]
[351969170,1738864247115,-500.0,0.00016712,2]
[351969172,1738864247125,-615.24,0.00016712,2]
[351969174,1738864247135,-500.0,0.00016712,2]
[351969176,1738864247145,-500.0,0.00016712,2]
[351969178,1738864247155,-619.74,0.00016712,2]
[351969180,1738864247165,-713.98,0.00016712,2]
[351969182,1738864247176,-500.0,0.00016712,2]
[351969184,1738864247185,-500.0,0.00016712,2]
[351969186,1738864247195,-500.0,0.00016712,2]
[351969188,1738864247205,-571.59,0.00016712,2]
[351969190,1738864247215,-500.0,0.00016712,2]
[351969192,1738864247226,-500.0,0.00016712,2]
[351969194,1738864247236,-646.73,0.00016712,2]
[351969196,1738864247246,-631.57,0.00016712,2]
[351969198,1738864247256,-500.0,0.00016712,2]
[351969205,1738864247317,-500.0,0.00016712,2]
[351969207,1738864247327,-595.25,0.00016712,2]
[351969209,1738864247339,-500.0,0.00016712,2]
[351969211,1738864247349,-500.0,0.00016712,2]
[351969213,1738864247358,-648.64,0.00016712,2]
[351969215,1738864247367,-500.0,0.00016712,2]
[351969216,1738864247378,-500.0,0.00016712,2]
[351969218,1738864247387,-560.01,0.00016712,2]
[351969220,1738864247396,-500.0,0.00016712,2]
[351969222,1738864247406,-500.0,0.00016712,2]
[351969223,1738864247416,-608.75215588,0.00016712,2]
[351969224,1738864247425,-500.0,0.00016712,2]
[351969225,1738864247435,-500.0,0.00016712,2]
[351969226,1738864247444,-500.0,0.00016712,2]
[351969227,1738864247454,-500.0,0.00016712,2]
[351969228,1738864247463,-506.83,0.00016712,2]
[351969229,1738864247473,-558.07,0.00016712,2]
[351969230,1738864247483,-500.0,0.00016712,2]
[351969231,1738864247492,-500.0,0.00016712,2]
[351969232,1738864247502,-500.0,0.00016712,2]
[351969233,1738864247513,-500.0,0.00016712,2]
[351969234,1738864247522,-500.0,0.00016712,2]
[351969235,1738864247532,-500.0,0.00016712,2]
[351969236,1738864247542,-500.0,0.00016712,2]
[351969237,1738864247551,-500.0,0.00016712,2]
[351969238,1738864247561,-500.0,0.00016712,2]
[351969239,1738864247570,-500.0,0.00016712,2]
[351969240,1738864247580,-519.18068249,0.00016712,2]
[351969241,1738864247590,-500.0,0.00016712,2]
[351969242,1738864247600,-500.0,0.00016712,2]
[351969243,1738864247609,-500.0,0.00016712,2]
[351969244,1738864247619,-500.0,0.00016712,2]
[351969245,1738864247628,-500.0,0.00016712,2]
[351969246,1738864247637,-500.0,0.00016712,2]
[351969247,1738864247647,-500.0,0.00016712,2]
[351969248,1738864247656,-500.0,0.00016712,2]
[351969249,1738864247666,-500.0,0.00016712,2]
[351969250,1738864247676,-500.0,0.00016712,2]
[351969251,1738864247686,-500.0,0.00016712,2]
[351969252,1738864247696,-500.0,0.00016712,2]
[351969253,1738864247706,-500.0,0.00016712,2]
[351969254,1738864247715,-500.0,0.00016712,2]
[351969255,1738864247724,-500.0,0.00016712,2]
[351969256,1738864247734,-500.0,0.00016712,2]
[351969257,1738864247743,-500.0,0.00016712,2]
[351969258,1738864247753,-648.71,0.00016712,2]
[351969259,1738864247763,-500.0,0.00016712,2]
[351969260,1738864247773,-500.0,0.00016712,2]
[351969261,1738864247782,-500.0,0.00016712,2]
[351969262,1738864247792,-500.0,0.00016712,2]
[351969263,1738864247802,-500.0,0.00016712,2]
[351969264,1738864247811,-500.0,0.00016712,2]
[351969265,1738864247822,-500.0,0.00016712,2]
[351969266,1738864247832,-500.0,0.00016712,2]
[351969267,1738864247843,-500.0,0.00016712,2]
[351969268,1738864247853,-500.0,0.00016712,2]
[351969269,1738864247862,-528.44,0.00016712,2]
[351969270,1738864247872,-500.0,0.00016712,2]
[351969271,1738864247882,-500.0,0.00016712,2]
[351969272,1738864247891,-500.0,0.00016712,2]
[351969273,1738864247901,-500.0,0.00016712,2]
[351969274,1738864247912,-671.21,0.00016712,2]
[351969275,1738864247922,-500.0,0.00016712,2]
[351969276,1738864247932,-555.6,0.00016712,2]
[351969277,1738864247943,-500.0,0.00016712,2]
[351969278,1738864247954,-500.0,0.00016712,2]
[351969279,1738864247964,-500.0,0.00016712,2]
[351969280,1738864247974,-500.0,0.00016712,2]
[351969282,1738864247984,-514.18,0.00016712,2]
[351969284,1738864247993,-500.0,0.00016712,2]
[351969286,1738864248005,-500.0,0.00016712,2]
[351969287,1738864248017,-500.0,0.00016712,2]
[351969288,1738864248027,-500.0,0.00016712,2]
[351969289,1738864248037,-500.0,0.00016712,2]
[351969290,1738864248050,-500.0,0.00016712,2]
[351969291,1738864248060,-500.0,0.00016712,2]
[351969292,1738864248071,-500.0,0.00016712,2]
[351969293,1738864248082,-500.0,0.00016712,2]
[351969294,1738864248094,-500.0,0.00016712,2]
[351969295,1738864248105,-500.0,0.00016712,2]
[351969296,1738864248114,-500.0,0.00016712,2]
[351969297,1738864248125,-1329.89,0.00016712,2]
[351969298,1738864248135,-500.0,0.00016712,2]
[351969299,1738864248146,-500.0,0.00016712,2]
[351969300,1738864248157,-926.49,0.00016712,2]
[351969301,1738864248167,-731.61,0.00016712,2]
[351969302,1738864248178,-500.0,0.00016712,2]
[351969303,1738864248189,-938.32,0.00016785,2]
[351969304,1738864248199,-960.37,0.00016785,2]
[351969305,1738864248210,-963.03,0.00016785,2]
[351969306,1738864248220,-1875.99,0.00016785,2]
[351969307,1738864248231,-151.187825,0.00016785,2]
[351969308,1738864248242,-500.0,0.00016785,2]
[351969309,1738864248252,-809.73,0.00016785,2]
[351969310,1738864248262,-598.94,0.00016785,2]
[351969311,1738864248273,-703.49,0.00016785,2]
[351969312,1738864248283,-782.67,0.00016785,2]
[351969313,1738864248294,-747.22,0.00016785,2]
[351969314,1738864248305,-838.28,0.00016785,2]
[351969315,1738864248315,-500.0,0.00016785,2]
[351969316,1738864248325,-1192.66,0.00016785,2]
[351969317,1738864248337,-653.9,0.00016785,2]
[351969318,1738864248348,-1076.01,0.00016785,2]
[351969319,1738864248359,-1079.82,0.00016785,2]
[351969320,1738864248371,-973.02,0.00016785,2]
[351969321,1738864248382,-910.17,0.00016785,2]
[351969322,1738864248392,-500.0,0.00016785,2]
[351969323,1738864248402,-902.58,0.00016785,2]
[351969324,1738864248413,-1536.57,0.00016785,2]
[351969325,1738864248424,-2278.9,0.00016785,2]
[351969326,1738864248435,-1696.32,0.00016785,2]
[351969327,1738864248445,-883.94,0.00016785,2]
[351969328,1738864248455,-2162.47,0.00016785,2]
[351969329,1738864248468,-920.06,0.00016785,2]
[351969330,1738864248477,-538.14532711,0.00016785,2]
[351969331,1738864248487,-1036.47,0.00016785,2]
[351969332,1738864248498,-1042.66,0.00016785,2]
[351969333,1738864248508,-730.89,0.00016785,2]
[351969334,1738864248519,-500.0,0.00016785,2]
[351969335,1738864248529,-833.64,0.00016785,2]
[351969336,1738864248540,-921.14,0.00016785,2]
[351969337,1738864248551,-4606.21256607,0.0001679,2]
[351969338,1738864248561,-1000.0,0.000168,6]
[351969339,1738864248571,-962.785,0.00016821,2]
[351969340,1738864248582,-500.0,0.00016846,2]
[351969341,1738864248595,-500.0,0.00016846,2]
[351969342,1738864248605,-500.0,0.00016846,2]
[351969343,1738864248615,-613.15684846,0.00016846,2]
[351969344,1738864248625,-500.0,0.00016846,2]
[351969345,1738864248635,-500.0,0.00016846,2]
[351969346,1738864248645,-500.0,0.00016846,2]
[351969347,1738864248655,-500.0,0.00016846,2]
[351969348,1738864248665,-500.0,0.00016846,2]
[351969349,1738864248675,-500.0,0.00016846,2]
[351969350,1738864248686,-500.0,0.00016846,2]
[351969351,1738864248697,-500.0,0.00016846,2]
[351969352,1738864248708,-500.0,0.00016846,2]
[351969353,1738864248718,-500.0,0.00016846,2]
[351969354,1738864248728,-500.0,0.00016846,2]
[351969355,1738864248738,-500.0,0.00016846,2]
[351969356,1738864248748,-500.0,0.00016846,2]
[351969357,1738864248758,-500.0,0.00016846,2]
[351969358,1738864248769,-500.0,0.00016846,2]
[351969359,1738864248779,-500.0,0.00016846,2]
[351969360,1738864248791,-500.0,0.00016846,2]
[351969361,1738864248801,-500.0,0.00016846,2]
[351969362,1738864248811,-171.44752251,0.00016846,2]
[351969363,1738864248822,-500.0,0.00016846,2]
[351969364,1738864248833,-500.0,0.00016846,2]
[351969365,1738864248846,-500.0,0.00016846,2]
[351969366,1738864248856,-500.0,0.00016846,2]
[351969367,1738864248866,-500.0,0.00016846,2]
[351969368,1738864248877,-584.21,0.00016846,2]
[351969369,1738864248888,-500.0,0.00016846,2]
[351969370,1738864248898,-500.0,0.00016846,2]
[351969371,1738864248907,-500.0,0.00016846,2]
[351969372,1738864248918,-500.0,0.00016846,2]
[351969373,1738864248928,-789.23,0.00016846,2]
[351969374,1738864248938,-500.0,0.00016846,2]
[351969375,1738864248948,-702.07,0.00016846,2]
[351969376,1738864248958,-500.0,0.00016846,2]
[351969377,1738864248968,-500.0,0.00016846,2]
[351969378,1738864248978,-1437.52,0.00016846,2]
[351969379,1738864248989,-1020.82,0.00016846,2]
[351969380,1738864249002,-500.0,0.00016846,2]
[351969381,1738864249018,-500.0,0.00016846,2]
[351969382,1738864249028,-1573.34,0.00016846,2]
[351969383,1738864249039,-500.0,0.00016846,2]
[351969384,1738864249051,-1402.7,0.00016846,2]
[351969385,1738864249062,-500.0,0.00016846,2]
[351969386,1738864249071,-1095.18,0.00016846,2]
[351969387,1738864249083,-500.0,0.00016846,2]
[351969388,1738864249097,-500.0,0.00016846,2]
[351969389,1738864249108,-500.0,0.00016846,2]
[351969390,1738864249119,-581.4,0.00016846,2]
[351969391,1738864249131,-792.17,0.00016846,2]
[351969392,1738864249142,-500.0,0.00016846,2]
[351969393,1738864249152,-947.46,0.00016846,2]
[351969394,1738864249159,-1290.55,0.00016846,2]